[Event "Early-Titled-Tuesday-Blitz-October-10-2023"]
[Site "Chess.com"]
[Date "2023.10.10"]
[Round "6"]
[White "LUISMIGUELOV"]
[Black "Goi_Manne"]
[Result "1/2-1/2"]
[WhiteElo "2141"]
[BlackElo "2292"]
[TimeControl "180+1"]
[EndTime "9:05:32 PDT"]
[Termination "Game drawn by repetition"]

1. d4 {[%clk 0:03:00.9]} 1... d5 {[%clk 0:02:59.7]} 2. Nf3 {[%clk 0:03:00.3]}
2... Nf6 {[%clk 0:02:59.6]} 3. c3 {[%clk 0:03:00.1]} 3... Bf5 {[%clk 0:02:59.7]}
4. Qb3 {[%clk 0:02:58.1]} 4... Qc8 {[%clk 0:02:54.5]} 5. Bf4 {[%clk 0:02:57.1]}
5... c6 {[%clk 0:02:53.5]} 6. Nbd2 {[%clk 0:02:54]} 6... Nbd7 {[%clk 0:02:53.7]}
7. e3 {[%clk 0:02:53.5]} 7... e6 {[%clk 0:02:52.3]} 8. Be2 {[%clk 0:02:53.3]}
8... Be7 {[%clk 0:02:52.1]} 9. O-O {[%clk 0:02:53.1]} 9... O-O {[%clk
0:02:52.6]} 10. h3 {[%clk 0:02:53.3]} 10... h6 {[%clk 0:02:52.2]} 11. Rfe1
{[%clk 0:02:42.9]} 11... Nb6 {[%clk 0:02:52.3]} 12. a4 {[%clk 0:02:34]} 12...
Qd7 {[%clk 0:02:52.5]} 13. Ne5 {[%clk 0:02:30]} 13... Qc8 {[%clk 0:02:49.4]} 14.
a5 {[%clk 0:02:26.3]} 14... Nbd7 {[%clk 0:02:49.1]} 15. Ndf3 {[%clk 0:02:25.8]}
15... Nxe5 {[%clk 0:02:47.3]} 16. Nxe5 {[%clk 0:02:22.8]} 16... Bd6 {[%clk
0:02:45.1]} 17. Qd1 {[%clk 0:02:18.1]} 17... Qc7 {[%clk 0:02:43.1]} 18. b4
{[%clk 0:02:17.5]} 18... Nd7 {[%clk 0:02:42.8]} 19. Nxd7 {[%clk 0:02:11.7]}
19... Qxd7 {[%clk 0:02:43.7]} 20. Bxd6 {[%clk 0:02:11.4]} 20... Qxd6 {[%clk
0:02:44.6]} 21. f4 {[%clk 0:02:11.2]} 21... Be4 {[%clk 0:02:42.7]} 22. Bf3
{[%clk 0:02:07]} 22... f5 {[%clk 0:02:42.2]} 23. Bxe4 {[%clk 0:02:05.5]} 23...
fxe4 {[%clk 0:02:42.9]} 24. Qh5 {[%clk 0:02:03.7]} 24... Rf5 {[%clk 0:02:39.5]}
25. Qh4 {[%clk 0:01:58.1]} 25... Qd8 {[%clk 0:02:35.6]} 26. Qxd8+ {[%clk
0:01:54.8]} 26... Rxd8 {[%clk 0:02:36.5]} 27. g4 {[%clk 0:01:53.7]} 27... Rf7
{[%clk 0:02:36.7]} 28. Kg2 {[%clk 0:01:50.2]} 28... g5 {[%clk 0:02:36.6]} 29.
fxg5 {[%clk 0:01:45.4]} 29... hxg5 {[%clk 0:02:37.5]} 30. Rf1 {[%clk 0:01:45.5]}
30... Rh7 {[%clk 0:02:37.3]} 31. Rf6 {[%clk 0:01:42.9]} 31... Re8 {[%clk
0:02:36.6]} 32. Rg6+ {[%clk 0:01:30.2]} 32... Rg7 {[%clk 0:02:36.4]} 33. Rxg7+
{[%clk 0:01:30.4]} 33... Kxg7 {[%clk 0:02:37.3]} 34. Rf1 {[%clk 0:01:29.5]}
34... Kg6 {[%clk 0:02:37.3]} 35. Kg3 {[%clk 0:01:27.7]} 35... b6 {[%clk
0:02:35.3]} 36. a6 {[%clk 0:01:11.9]} 36... Rh8 {[%clk 0:02:31]} 37. Rf2 {[%clk
0:01:09.5]} 37... Rc8 {[%clk 0:02:30.5]} 38. h4 {[%clk 0:01:08.6]} 38... gxh4+
{[%clk 0:02:31.4]} 39. Kxh4 {[%clk 0:01:08.2]} 39... c5 {[%clk 0:02:31.6]} 40.
g5 {[%clk 0:01:00]} 40... cxb4 {[%clk 0:02:27]} 41. Rf6+ {[%clk 0:00:59.4]}
41... Kg7 {[%clk 0:02:26.9]} 42. cxb4 {[%clk 0:00:59]} 42... Rc3 {[%clk
0:02:00.9]} 43. Rxe6 {[%clk 0:00:56.8]} 43... Rxe3 {[%clk 0:02:01]} 44. Re7+
{[%clk 0:00:54.8]} 44... Kg6 {[%clk 0:02:01.7]} 45. Rxa7 {[%clk 0:00:54.3]}
45... Ra3 {[%clk 0:02:01.8]} 46. Ra8 {[%clk 0:00:52.4]} 46... Kg7 {[%clk
0:01:53.3]} 47. b5 {[%clk 0:00:42.5]} 47... Ra5 {[%clk 0:01:50.4]} 48. a7 {[%clk
0:00:34.6]} 48... Ra3 {[%clk 0:01:27.1]} 49. Kg4 {[%clk 0:00:31.5]} 49... Ra1
{[%clk 0:01:19.3]} 50. Rd8 {[%clk 0:00:23.2]} 50... Rxa7 {[%clk 0:01:18.4]} 51.
Rxd5 {[%clk 0:00:23.6]} 51... Ra3 {[%clk 0:01:08.1]} 52. Kf4 {[%clk 0:00:20.1]}
52... e3 {[%clk 0:01:04.4]} 53. Re5 {[%clk 0:00:18]} 53... Rb3 {[%clk 0:01:04]}
54. Re6 {[%clk 0:00:13.1]} 54... Rxb5 {[%clk 0:01:02.2]} 55. Rxe3 {[%clk
0:00:12.7]} 55... Rd5 {[%clk 0:00:58.7]} 56. Re4 {[%clk 0:00:09.4]} 56... b5
{[%clk 0:00:57.4]} 57. Re7+ {[%clk 0:00:08.4]} 57... Kg6 {[%clk 0:00:55.5]} 58.
Re6+ {[%clk 0:00:08.2]} 58... Kf7 {[%clk 0:00:55.2]} 59. Re5 {[%clk 0:00:02.5]}
59... Rxd4+ {[%clk 0:00:54.8]} 60. Kf5 {[%clk 0:00:02.9]} 60... Rb4 {[%clk
0:00:51.3]} 61. g6+ {[%clk 0:00:02.9]} 61... Kg8 {[%clk 0:00:51.2]} 62. Re8+
{[%clk 0:00:02.5]} 62... Kg7 {[%clk 0:00:51.1]} 63. Re7+ {[%clk 0:00:02.8]}
63... Kf8 {[%clk 0:00:51.7]} 64. Rb7 {[%clk 0:00:02.4]} 64... Rb1 {[%clk
0:00:50]} 65. Kf6 {[%clk 0:00:01.9]} 65... Rf1+ {[%clk 0:00:48.6]} 66. Ke6
{[%clk 0:00:01.2]} 66... Re1+ {[%clk 0:00:44.1]} 67. Kf6 {[%clk 0:00:01.3]}
67... Rf1+ {[%clk 0:00:44.5]} 68. Ke6 {[%clk 0:00:01.3]} 68... Rg1 {[%clk
0:00:43.3]} 69. Kf6 {[%clk 0:00:01.4]} 69... Rf1+ {[%clk 0:00:42.7]} 1/2-1/2

[Event "Early-Titled-Tuesday-Blitz-October-10-2023"]
[Site "Chess.com"]
[Date "2023.10.10"]
[Round "6"]
[White "Willi_Skibbe"]
[Black "Better_Chess_Faster"]
[Result "1-0"]
[WhiteElo "2227"]
[BlackElo "2039"]
[TimeControl "180+1"]
[EndTime "9:05:33 PDT"]
[Termination "Willi_Skibbe won on time"]

1. f4 {[%clk 0:03:00.9]} 1... g6 {[%clk 0:02:56.2]} 2. Nf3 {[%clk 0:03:00.1]}
2... Bg7 {[%clk 0:02:56.3]} 3. g3 {[%clk 0:02:59.9]} 3... c5 {[%clk 0:02:55.4]}
4. Bg2 {[%clk 0:02:59.6]} 4... Nc6 {[%clk 0:02:55.4]} 5. O-O {[%clk 0:02:59.5]}
5... d6 {[%clk 0:02:54.3]} 6. d3 {[%clk 0:02:58.7]} 6... e6 {[%clk 0:02:54.2]}
7. c3 {[%clk 0:02:57.4]} 7... Nge7 {[%clk 0:02:54]} 8. e4 {[%clk 0:02:51.3]}
8... Rb8 {[%clk 0:02:53.6]} 9. d4 {[%clk 0:02:51.3]} 9... b6 {[%clk 0:02:48]}
10. d5 {[%clk 0:02:37.1]} 10... exd5 {[%clk 0:02:41.4]} 11. exd5 {[%clk
0:02:38]} 11... Na5 {[%clk 0:02:35.5]} 12. a4 {[%clk 0:02:32.9]} 12... O-O
{[%clk 0:02:29.4]} 13. Na3 {[%clk 0:02:31.8]} 13... a6 {[%clk 0:02:09.5]} 14.
Be3 {[%clk 0:02:26.6]} 14... b5 {[%clk 0:02:04.3]} 15. axb5 {[%clk 0:02:22.9]}
15... axb5 {[%clk 0:02:04.5]} 16. Qc2 {[%clk 0:02:04.7]} 16... Bf5 {[%clk
0:01:55.6]} 17. Qf2 {[%clk 0:01:58.3]} 17... Nxd5 {[%clk 0:01:50.8]} 18. Ng5
{[%clk 0:01:56.2]} 18... Nxe3 {[%clk 0:01:46.1]} 19. Qxe3 {[%clk 0:01:57.1]}
19... Re8 {[%clk 0:01:40.5]} 20. Qf2 {[%clk 0:01:44.5]} 20... d5 {[%clk
0:01:30.1]} 21. Rad1 {[%clk 0:01:41.4]} 21... d4 {[%clk 0:01:25.2]} 22. cxd4
{[%clk 0:01:37.4]} 22... Bxd4 {[%clk 0:01:20.7]} 23. Rxd4 {[%clk 0:01:34.6]}
23... Qxd4 {[%clk 0:01:20]} 24. Qxd4 {[%clk 0:01:31.8]} 24... cxd4 {[%clk
0:01:20.9]} 25. Bd5 {[%clk 0:01:31.9]} 25... Be6 {[%clk 0:01:18.1]} 26. Bxe6
{[%clk 0:01:28.1]} 26... fxe6 {[%clk 0:01:17.5]} 27. Ne4 {[%clk 0:01:29]} 27...
Kf7 {[%clk 0:01:10.3]} 28. Nd6+ {[%clk 0:01:28.8]} 28... Kf6 {[%clk 0:01:05.3]}
29. Nxe8+ {[%clk 0:01:28.1]} 29... Rxe8 {[%clk 0:01:06.2]} 30. Nxb5 {[%clk
0:01:28.4]} 30... Rd8 {[%clk 0:00:59]} 31. Rd1 {[%clk 0:01:24]} 31... d3 {[%clk
0:00:57.6]} 32. Nc3 {[%clk 0:01:22.1]} 32... Nc4 {[%clk 0:00:54.7]} 33. b3
{[%clk 0:01:20.6]} 33... Ne3 {[%clk 0:00:44.3]} 34. Rd2 {[%clk 0:01:20.5]} 34...
Nc2 {[%clk 0:00:27]} 35. Ne4+ {[%clk 0:01:12.2]} 35... Kf5 {[%clk 0:00:23.8]}
36. Nc5 {[%clk 0:01:11.6]} 36... Nb4 {[%clk 0:00:21.8]} 37. Kf2 {[%clk
0:01:07.8]} 37... e5 {[%clk 0:00:20.9]} 38. g4+ {[%clk 0:01:01.5]} 38... Kxg4
{[%clk 0:00:20.3]} 39. fxe5 {[%clk 0:01:01.8]} 39... Kf5 {[%clk 0:00:18.6]} 40.
e6 {[%clk 0:01:01.6]} 40... Re8 {[%clk 0:00:15.7]} 41. Ke3 {[%clk 0:00:58]}
41... g5 {[%clk 0:00:15.1]} 42. Rf2+ {[%clk 0:00:56]} 42... Kg6 {[%clk
0:00:14.4]} 43. Kd2 {[%clk 0:00:54.1]} 43... h5 {[%clk 0:00:11.4]} 44. Rf3
{[%clk 0:00:51.2]} 44... g4 {[%clk 0:00:10.2]} 45. Re3 {[%clk 0:00:51.2]} 45...
Nd5 {[%clk 0:00:09.7]} 46. Re5 {[%clk 0:00:50.2]} 46... Nf4 {[%clk 0:00:09.3]}
47. Re4 {[%clk 0:00:49]} 47... Kg5 {[%clk 0:00:08.8]} 48. b4 {[%clk 0:00:49.5]}
48... Kf5 {[%clk 0:00:07.2]} 49. b5 {[%clk 0:00:49.1]} 49... Nxe6 {[%clk
0:00:06.3]} 50. b6 {[%clk 0:00:44.7]} 50... Nxc5 {[%clk 0:00:04.3]} 51. Rxe8
{[%clk 0:00:44.4]} 51... h4 {[%clk 0:00:03.7]} 52. Rc8 {[%clk 0:00:42.5]} 52...
Nb7 {[%clk 0:00:02.8]} 53. Rc7 {[%clk 0:00:42.5]} 53... Na5 {[%clk 0:00:02.8]}
54. Ra7 {[%clk 0:00:42.6]} 54... Nc6 {[%clk 0:00:02.5]} 55. Ra4 {[%clk
0:00:40.9]} 55... g3 {[%clk 0:00:01.6]} 56. hxg3 {[%clk 0:00:38.5]} 56... hxg3
{[%clk 0:00:02.5]} 57. b7 {[%clk 0:00:39.1]} 57... g2 {[%clk 0:00:01.9]} 58. Ra1
{[%clk 0:00:38.7]} 58... Kf4 {[%clk 0:00:02.1]} 59. Kxd3 {[%clk 0:00:37.6]}
59... Kg3 {[%clk 0:00:02]} 60. Kc4 {[%clk 0:00:34.6]} 60... Kf2 {[%clk 0:00:02]}
61. Kc5 {[%clk 0:00:32.9]} 61... Nb8 {[%clk 0:00:01.7]} 62. Ra2+ {[%clk
0:00:22.9]} 62... Kf1 {[%clk 0:00:01.9]} 63. Ra1+ {[%clk 0:00:23]} 63... Kf2
{[%clk 0:00:01.3]} 64. Kb6 {[%clk 0:00:22.8]} 1-0

[Event "Early-Titled-Tuesday-Blitz-October-10-2023"]
[Site "Chess.com"]
[Date "2023.10.10"]
[Round "6"]
[White "Zavgorodniy_Sergiy"]
[Black "RobertoJBM"]
[Result "1-0"]
[WhiteElo "2645"]
[BlackElo "2804"]
[TimeControl "180+1"]
[EndTime "9:05:36 PDT"]
[Termination "Zavgorodniy_Sergiy won on time"]

1. e4 {[%clk 0:02:57.6]} 1... c6 {[%clk 0:02:59.8]} 2. d4 {[%clk 0:02:55.2]}
2... d5 {[%clk 0:03:00.7]} 3. exd5 {[%clk 0:02:55.9]} 3... cxd5 {[%clk 0:03:01]}
4. c4 {[%clk 0:02:56.6]} 4... Nf6 {[%clk 0:03:01.4]} 5. Nc3 {[%clk 0:02:56.3]}
5... e6 {[%clk 0:03:02]} 6. Nf3 {[%clk 0:02:56]} 6... Be7 {[%clk 0:03:02.5]} 7.
cxd5 {[%clk 0:02:56]} 7... Nxd5 {[%clk 0:03:03.4]} 8. Bd3 {[%clk 0:02:56.2]}
8... O-O {[%clk 0:03:03.9]} 9. O-O {[%clk 0:02:56.3]} 9... Nc6 {[%clk
0:03:04.6]} 10. Re1 {[%clk 0:02:55.4]} 10... Nf6 {[%clk 0:03:05.2]} 11. Bg5
{[%clk 0:02:54.5]} 11... b6 {[%clk 0:03:05.5]} 12. Ne5 {[%clk 0:02:52.9]} 12...
Bb7 {[%clk 0:03:04]} 13. Ba6 {[%clk 0:02:52.9]} 13... Qc8 {[%clk 0:03:04.5]} 14.
Qf3 {[%clk 0:02:52.9]} 14... Na5 {[%clk 0:02:51.9]} 15. Bxb7 {[%clk 0:02:52.8]}
15... Qxb7 {[%clk 0:02:52.8]} 16. Qxb7 {[%clk 0:02:52.4]} 16... Nxb7 {[%clk
0:02:53.7]} 17. Nc6 {[%clk 0:02:52.6]} 17... Bd6 {[%clk 0:02:46.7]} 18. Bxf6
{[%clk 0:02:51.8]} 18... gxf6 {[%clk 0:02:47.6]} 19. d5 {[%clk 0:02:52.3]} 19...
Rfe8 {[%clk 0:02:42.7]} 20. dxe6 {[%clk 0:02:43.3]} 20... fxe6 {[%clk
0:02:42.7]} 21. Rad1 {[%clk 0:02:41.3]} 21... f5 {[%clk 0:01:58.6]} 22. Nb5
{[%clk 0:02:30.6]} 22... Bf4 {[%clk 0:01:48]} 23. g3 {[%clk 0:02:28.5]} 23... a6
{[%clk 0:01:48.4]} 24. Na3 {[%clk 0:02:11.7]} 24... Bh6 {[%clk 0:01:43.8]} 25.
Rd7 {[%clk 0:02:08.9]} 25... Nc5 {[%clk 0:01:43.2]} 26. Rc7 {[%clk 0:01:56.5]}
26... Bf8 {[%clk 0:01:42.5]} 27. Nc4 {[%clk 0:01:54.1]} 27... Rac8 {[%clk
0:01:42.4]} 28. Rxc8 {[%clk 0:01:44.7]} 28... Rxc8 {[%clk 0:01:43.3]} 29. N4e5
{[%clk 0:01:45.1]} 29... Rc7 {[%clk 0:01:35.5]} 30. b4 {[%clk 0:01:44.4]} 30...
Ne4 {[%clk 0:01:35.4]} 31. Rd1 {[%clk 0:01:38.8]} 31... Kg7 {[%clk 0:01:32.8]}
32. a3 {[%clk 0:01:32.2]} 32... a5 {[%clk 0:01:29.5]} 33. f3 {[%clk 0:01:32.2]}
33... Nc3 {[%clk 0:01:25]} 34. Rd3 {[%clk 0:01:30.5]} 34... axb4 {[%clk
0:01:24.7]} 35. axb4 {[%clk 0:01:29.3]} 35... Nd5 {[%clk 0:01:25.2]} 36. b5
{[%clk 0:01:26.7]} 36... Bc5+ {[%clk 0:01:24.9]} 37. Kg2 {[%clk 0:01:25.4]}
37... f4 {[%clk 0:01:15.5]} 38. Kh3 {[%clk 0:01:17.7]} 38... Kf6 {[%clk
0:01:10.3]} 39. g4 {[%clk 0:01:06.5]} 39... h5 {[%clk 0:00:50.8]} 40. gxh5
{[%clk 0:00:54.6]} 40... Rh7 {[%clk 0:00:48]} 41. Ng4+ {[%clk 0:00:54.6]} 41...
Kg5 {[%clk 0:00:42.6]} 42. h6 {[%clk 0:00:54.3]} 42... Ne3 {[%clk 0:00:41.8]}
43. Nce5 {[%clk 0:00:54]} 43... Bf8 {[%clk 0:00:33]} 44. Nxe3 {[%clk 0:00:49.7]}
44... fxe3 {[%clk 0:00:31.4]} 45. Rxe3 {[%clk 0:00:50.3]} 45... Bxh6 {[%clk
0:00:27.8]} 46. Ng4 {[%clk 0:00:48.6]} 46... Kf4 {[%clk 0:00:16.8]} 47. Kg2
{[%clk 0:00:47.1]} 47... Bf8 {[%clk 0:00:13.9]} 48. Re4+ {[%clk 0:00:44.8]}
48... Kf5 {[%clk 0:00:14.4]} 49. Re5+ {[%clk 0:00:44.5]} 49... Kf4 {[%clk
0:00:15]} 50. Rxe6 {[%clk 0:00:44.8]} 50... Bc5 {[%clk 0:00:15.7]} 51. Rf6+
{[%clk 0:00:40.1]} 51... Kg5 {[%clk 0:00:15.7]} 52. Kg3 {[%clk 0:00:36.4]} 52...
Be3 {[%clk 0:00:02.5]} 53. f4+ {[%clk 0:00:35.6]} 53... Bxf4+ {[%clk 0:00:02.7]}
54. Rxf4 {[%clk 0:00:35]} 54... Rc7 {[%clk 0:00:03.6]} 55. h4+ {[%clk
0:00:34.9]} 55... Kh5 {[%clk 0:00:03.8]} 56. Rf5+ {[%clk 0:00:35.1]} 56... Kg6
{[%clk 0:00:04.3]} 57. Rg5+ {[%clk 0:00:33.3]} 57... Kh7 {[%clk 0:00:04.7]} 58.
h5 {[%clk 0:00:32.6]} 58... Rc4 {[%clk 0:00:03.9]} 59. Rg6 {[%clk 0:00:30.6]}
59... Rc5 {[%clk 0:00:03.4]} 60. Rxb6 {[%clk 0:00:29.4]} 60... Kg7 {[%clk
0:00:01.6]} 61. Kh4 {[%clk 0:00:28.3]} 1-0

[Event "Early-Titled-Tuesday-Blitz-October-10-2023"]
[Site "Chess.com"]
[Date "2023.10.10"]
[Round "6"]
[White "Fandorine"]
[Black "SchachmattTV_Tobi"]
[Result "1-0"]
[WhiteElo "2905"]
[BlackElo "2589"]
[TimeControl "180+1"]
[EndTime "9:05:39 PDT"]
[Termination "Fandorine won by checkmate"]

1. g3 {[%clk 0:03:00.9]} 1... d5 {[%clk 0:02:58.1]} 2. Bg2 {[%clk 0:03:00.7]}
2... Nf6 {[%clk 0:02:58.6]} 3. Nf3 {[%clk 0:02:59.9]} 3... e6 {[%clk 0:02:58.7]}
4. O-O {[%clk 0:03:00.2]} 4... Be7 {[%clk 0:02:58.4]} 5. d3 {[%clk 0:03:00.8]}
5... O-O {[%clk 0:02:57]} 6. Bf4 {[%clk 0:02:58.6]} 6... c5 {[%clk 0:02:56.3]}
7. e4 {[%clk 0:02:58.3]} 7... Nc6 {[%clk 0:02:55]} 8. e5 {[%clk 0:02:57.8]} 8...
Nd7 {[%clk 0:02:54.6]} 9. h4 {[%clk 0:02:58.4]} 9... b5 {[%clk 0:02:53.6]} 10.
Re1 {[%clk 0:02:57.2]} 10... a5 {[%clk 0:02:53]} 11. Nbd2 {[%clk 0:02:57.9]}
11... b4 {[%clk 0:02:52.9]} 12. Nf1 {[%clk 0:02:57.1]} 12... Ba6 {[%clk
0:02:52.8]} 13. N1h2 {[%clk 0:02:56.3]} 13... a4 {[%clk 0:02:51.8]} 14. a3
{[%clk 0:02:55.6]} 14... bxa3 {[%clk 0:02:49.8]} 15. bxa3 {[%clk 0:02:55.8]}
15... Rb8 {[%clk 0:02:46.1]} 16. h5 {[%clk 0:02:55.8]} 16... h6 {[%clk
0:02:43.6]} 17. Ng4 {[%clk 0:02:55.9]} 17... Nd4 {[%clk 0:02:40.6]} 18. c4
{[%clk 0:02:19.1]} 18... dxc4 {[%clk 0:02:03.5]} 19. dxc4 {[%clk 0:02:13.5]}
19... Nb3 {[%clk 0:01:36.4]} 20. Rc1 {[%clk 0:02:03.2]} 20... Nb6 {[%clk
0:01:23.5]} 21. Rc3 {[%clk 0:01:35.4]} 21... Qxd1 {[%clk 0:01:18]} 22. Rxd1
{[%clk 0:01:36.3]} 22... Bxc4 {[%clk 0:01:12.9]} 23. Re1 {[%clk 0:01:24.1]}
23... Bd5 {[%clk 0:01:10]} 24. Ne3 {[%clk 0:01:23.6]} 24... Rfc8 {[%clk
0:00:55.1]} 25. Nc2 {[%clk 0:00:57.8]} 25... c4 {[%clk 0:00:50.2]} 26. Be3
{[%clk 0:00:44.9]} 26... Bxf3 {[%clk 0:00:45.8]} 27. Bxf3 {[%clk 0:00:42.8]}
27... Nd5 {[%clk 0:00:46.7]} 28. Bxd5 {[%clk 0:00:43]} 28... exd5 {[%clk
0:00:47.6]} 29. Rd1 {[%clk 0:00:42.8]} 29... Rd8 {[%clk 0:00:44.9]} 30. Kf1
{[%clk 0:00:38]} 30... Nc5 {[%clk 0:00:36.3]} 31. Bxc5 {[%clk 0:00:22.9]} 31...
Bxc5 {[%clk 0:00:37.2]} 32. Ke2 {[%clk 0:00:18.6]} 32... Kf8 {[%clk 0:00:36.4]}
33. Ne3 {[%clk 0:00:13.5]} 33... Bxe3 {[%clk 0:00:30.7]} 34. Kxe3 {[%clk
0:00:13.8]} 34... Rb3 {[%clk 0:00:25.1]} 35. Kd4 {[%clk 0:00:14.4]} 35... Ke7
{[%clk 0:00:25.2]} 36. f4 {[%clk 0:00:14.7]} 36... Rdb8 {[%clk 0:00:23.5]} 37.
g4 {[%clk 0:00:04.8]} 37... Rxc3 {[%clk 0:00:21.4]} 38. Kxc3 {[%clk 0:00:05.7]}
38... Rb3+ {[%clk 0:00:21.8]} 39. Kd4 {[%clk 0:00:06.6]} 39... Rxa3 {[%clk
0:00:22.1]} 40. Kc5 {[%clk 0:00:07.5]} 40... Rd3 {[%clk 0:00:19.1]} 41. Rb1
{[%clk 0:00:07.5]} 41... Rb3 {[%clk 0:00:19.6]} 42. Rd1 {[%clk 0:00:07.2]} 42...
a3 {[%clk 0:00:18.9]} 43. Kxd5 {[%clk 0:00:06]} 43... a2 {[%clk 0:00:17.7]} 44.
Ra1 {[%clk 0:00:04.6]} 44... c3 {[%clk 0:00:12.9]} 45. Rxa2 {[%clk 0:00:04.3]}
45... Rb4 {[%clk 0:00:13.5]} 46. Ra7+ {[%clk 0:00:04.5]} 46... Kf8 {[%clk
0:00:11]} 47. Ra8+ {[%clk 0:00:04]} 47... Ke7 {[%clk 0:00:11.2]} 48. Ra7+ {[%clk
0:00:04.4]} 48... Kf8 {[%clk 0:00:09.3]} 49. f5 {[%clk 0:00:05.1]} 49... c2
{[%clk 0:00:06.6]} 50. Rc7 {[%clk 0:00:05.3]} 50... Rxg4 {[%clk 0:00:06.4]} 51.
Rxc2 {[%clk 0:00:06]} 51... Ke7 {[%clk 0:00:03.6]} 52. Rc7+ {[%clk 0:00:05.5]}
52... Ke8 {[%clk 0:00:03.8]} 53. Rc8+ {[%clk 0:00:04.6]} 53... Ke7 {[%clk
0:00:03.8]} 54. Ra8 {[%clk 0:00:05.1]} 54... Rf4 {[%clk 0:00:03.5]} 55. Ra7+
{[%clk 0:00:04.1]} 55... Ke8 {[%clk 0:00:04.1]} 56. Kd6 {[%clk 0:00:04.2]} 56...
Rd4+ {[%clk 0:00:03.8]} 57. Kc6 {[%clk 0:00:04.7]} 57... Rg4 {[%clk 0:00:04.7]}
58. f6 {[%clk 0:00:04.2]} 58... gxf6 {[%clk 0:00:04.9]} 59. exf6 {[%clk
0:00:04.7]} 59... Rf4 {[%clk 0:00:05.5]} 60. Ra8# {[%clk 0:00:04.6]} 1-0

[Event "Early-Titled-Tuesday-Blitz-October-10-2023"]
[Site "Chess.com"]
[Date "2023.10.10"]
[Round "6"]
[White "ChessTankMan"]
[Black "Karttunen"]
[Result "1/2-1/2"]
[WhiteElo "2522"]
[BlackElo "2649"]
[TimeControl "180+1"]
[EndTime "9:05:39 PDT"]
[Termination "Game drawn - insufficient material"]

1. e4 {[%clk 0:03:00.9]} 1... c5 {[%clk 0:02:43.9]} 2. Nf3 {[%clk 0:02:59.9]}
2... d6 {[%clk 0:02:43.6]} 3. d4 {[%clk 0:02:58.4]} 3... cxd4 {[%clk 0:02:43.9]}
4. Qxd4 {[%clk 0:02:59.3]} 4... a6 {[%clk 0:02:40.2]} 5. c4 {[%clk 0:02:57.7]}
5... f5 {[%clk 0:02:29.4]} 6. exf5 {[%clk 0:02:35.6]} 6... Nc6 {[%clk
0:02:24.8]} 7. Qf4 {[%clk 0:02:24.9]} 7... Qa5+ {[%clk 0:02:21.6]} 8. Nc3 {[%clk
0:02:23.3]} 8... Bxf5 {[%clk 0:02:15.4]} 9. Bd2 {[%clk 0:01:58.8]} 9... Nh6
{[%clk 0:01:55.9]} 10. Be2 {[%clk 0:01:32.9]} 10... e5 {[%clk 0:01:49.1]} 11.
Qg3 {[%clk 0:01:32.1]} 11... e4 {[%clk 0:00:56.7]} 12. Nxe4 {[%clk 0:01:28.5]}
12... Qb6 {[%clk 0:00:47]} 13. Nxd6+ {[%clk 0:01:19.4]} 13... Bxd6 {[%clk
0:00:44.9]} 14. Qxd6 {[%clk 0:01:20.1]} 14... Qxb2 {[%clk 0:00:37.4]} 15. O-O
{[%clk 0:01:16.5]} 15... Rd8 {[%clk 0:00:36.6]} 16. Qf4 {[%clk 0:01:09.3]} 16...
O-O {[%clk 0:00:36]} 17. Qg5 {[%clk 0:00:48.1]} 17... Be4 {[%clk 0:00:24]} 18.
Rad1 {[%clk 0:00:37.4]} 18... Qf6 {[%clk 0:00:08.6]} 19. Qxf6 {[%clk 0:00:36.3]}
19... Rxf6 {[%clk 0:00:07.4]} 20. Bg5 {[%clk 0:00:35.2]} 20... Rxd1 {[%clk
0:00:07.5]} 21. Rxd1 {[%clk 0:00:35.2]} 21... Rf7 {[%clk 0:00:06.6]} 22. c5
{[%clk 0:00:30.7]} 22... Kf8 {[%clk 0:00:04.8]} 23. Bc4 {[%clk 0:00:25.1]} 23...
Bxf3 {[%clk 0:00:04.5]} 24. gxf3 {[%clk 0:00:20.2]} 24... Rxf3 {[%clk
0:00:04.7]} 25. Rd7 {[%clk 0:00:17.4]} 25... Rf5 {[%clk 0:00:04.6]} 26. Be3
{[%clk 0:00:12.1]} 26... Ne5 {[%clk 0:00:04.6]} 27. Rxb7 {[%clk 0:00:02.6]}
27... Nxc4 {[%clk 0:00:04.7]} 28. c6 {[%clk 0:00:03.1]} 28... Nd6 {[%clk
0:00:04.2]} 29. Rb8+ {[%clk 0:00:02.2]} 29... Ke7 {[%clk 0:00:03.9]} 30. c7
{[%clk 0:00:02.9]} 30... Kd7 {[%clk 0:00:02.8]} 31. Rd8+ {[%clk 0:00:02.5]}
31... Kxc7 {[%clk 0:00:03]} 32. Rh8 {[%clk 0:00:02.9]} 32... Nhf7 {[%clk
0:00:03]} 33. Rxh7 {[%clk 0:00:03]} 33... Kc6 {[%clk 0:00:03.4]} 34. Rxg7 {[%clk
0:00:03.2]} 34... Kd5 {[%clk 0:00:04.1]} 35. Rg6 {[%clk 0:00:03.2]} 35... Ne5
{[%clk 0:00:04.5]} 36. Rg7 {[%clk 0:00:02.7]} 36... Nf3+ {[%clk 0:00:04.9]} 37.
Kg2 {[%clk 0:00:02.7]} 37... Ne5 {[%clk 0:00:05.2]} 38. h4 {[%clk 0:00:02.8]}
38... Nec4 {[%clk 0:00:05.3]} 39. Rh7 {[%clk 0:00:02.7]} 39... Nxe3+ {[%clk
0:00:05.8]} 40. fxe3 {[%clk 0:00:03.5]} 40... Ne4 {[%clk 0:00:05.8]} 41. h5
{[%clk 0:00:04.1]} 41... Rf2+ {[%clk 0:00:06.2]} 42. Kh3 {[%clk 0:00:04.1]}
42... Rxa2 {[%clk 0:00:07.1]} 43. Rd7+ {[%clk 0:00:02.2]} 43... Ke6 {[%clk
0:00:07.1]} 44. Ra7 {[%clk 0:00:02.6]} 44... Kf5 {[%clk 0:00:06.7]} 45. h6
{[%clk 0:00:02.9]} 45... Ng5+ {[%clk 0:00:07.1]} 46. Kg3 {[%clk 0:00:03.3]}
46... Ne4+ {[%clk 0:00:07.4]} 47. Kh3 {[%clk 0:00:03.2]} 47... Ng5+ {[%clk
0:00:05.7]} 48. Kg3 {[%clk 0:00:03.7]} 48... Kg6 {[%clk 0:00:06.2]} 49. Kf4
{[%clk 0:00:02.6]} 49... Nh7 {[%clk 0:00:06.3]} 50. Ke5 {[%clk 0:00:02.8]} 50...
Kxh6 {[%clk 0:00:06.3]} 51. Kd5 {[%clk 0:00:03]} 51... Nf6+ {[%clk 0:00:06.6]}
52. Kc5 {[%clk 0:00:03.2]} 52... Ne4+ {[%clk 0:00:06.6]} 53. Kb6 {[%clk
0:00:03.4]} 53... Nc3 {[%clk 0:00:03.6]} 54. Rxa6 {[%clk 0:00:02.9]} 54... Nd5+
{[%clk 0:00:03.8]} 55. Kb5+ {[%clk 0:00:03.1]} 55... Rxa6 {[%clk 0:00:03.7]} 56.
Kxa6 {[%clk 0:00:03.2]} 56... Nxe3 {[%clk 0:00:04.1]} 1/2-1/2